bitfinex-derivatives/quotes_BNBF0:USTF0_20250507
["timestamp","ask_amount","ask_price","bid_price","bid_amount"]
[1746650299948,2.28953329,598.48,597.25,0.33486814]
[1746650300150,1.27376654,598.47,597.25,0.33486814]
[1746650300449,2.28953329,598.46,597.25,0.33486814]
[1746650300649,1.27376654,598.45,597.25,0.33486814]
[1746650300850,2.28953329,598.44,597.25,0.33486814]
[1746650301049,1.27376654,598.43,597.25,0.33486814]
[1746650301344,2.28953329,598.42,597.25,0.33486814]
[1746650301544,1.27376654,598.41,597.25,0.33486814]
[1746650301747,2.28953329,598.4,597.25,0.33486814]
[1746650301948,1.01576675,598.4,597.37,1.06448122]
[1746650302148,1.27432721,598.39,597.39,0.33478966]
[1746650302350,1.27432721,598.38,597.39,0.33478966]
[1746650302543,1.27432721,598.37,597.39,0.33478966]
[1746650302745,1.27432721,598.36,597.39,0.33478966]
[1746650302947,1.27432721,598.35,597.39,0.33478966]
[1746650303151,1.01576675,598.37,597.39,0.33478966]
[1746650303351,2.28935807,598.36,597.4,1.06]
[1746650303546,1.27359132,598.35,597.42,0.33477285]
[1746650303744,0.33393999,598.91,597.42,0.33477285]
[1746650303745,1.01576675,598.34,597.42,0.33477285]
[1746650303947,1.01576675,598.33,597.42,0.33477285]
[1746650304348,1.01576675,598.32,597.42,0.33477285]
[1746650304951,1.01576675,598.31,597.42,0.33477285]
[1746650305450,0.29100275,598.52,597.42,0.33477285]
[1746650305650,1.27330224,598.51,597.42,0.33477285]
[1746650305850,2.2891714,598.5,597.42,0.33477285]
[1746650306050,1.27330224,598.49,597.42,0.33477285]
[1746650306251,1.27330224,598.48,597.42,0.33477285]
[1746650306547,1.27330224,598.47,597.42,0.33477285]
[1746650306755,1.27330224,598.46,597.42,0.33477285]
[1746650307050,1.27330224,598.45,597.42,0.33477285]
[1746650307251,2.2891714,598.44,597.42,0.33477285]
[1746650307447,1.01586916,598.44,597.42,0.33477285]
[1746650308048,1.01586916,598.43,597.42,0.33477285]
[1746650308253,1.01586916,598.42,597.42,0.33477285]
[1746650308652,1.01586916,598.41,597.42,0.33477285]
[1746650309255,1.01586916,598.4,597.42,0.33477285]
[1746650309954,1.01586916,598.39,597.42,1.43077285]
[1746650310354,1.01586916,598.38,597.42,1.43077285]
[1746650310953,1.01586916,598.37,597.42,1.43077285]
[1746650311753,1.01586916,598.36,597.42,1.43077285]
[1746650312054,1.01586916,598.35,597.42,1.43077285]
[1746650313056,1.01586916,598.34,597.42,1.43077285]
[1746650313855,1.01586916,598.33,597.42,1.43077285]
[1746650314055,0.2909845,598.58,597.42,1.43077285]
[1746650314255,1.27200301,598.57,597.42,1.43077285]
[1746650314457,1.27200301,598.56,597.42,1.43077285]
[1746650314657,1.27200301,598.55,597.42,1.43077285]
[1746650314851,1.27200301,598.54,597.42,1.43077285]
[1746650315050,1.27200301,598.53,597.42,1.43077285]
[1746650315251,2.28684431,598.52,597.42,1.43077285]
[1746650315453,1.27200301,598.51,597.42,1.43077285]
[1746650315756,2.28684431,598.5,597.42,1.43077285]
[1746650315957,1.27200301,598.49,597.42,1.43077285]
[1746650316159,1.27200301,598.48,597.42,1.43077285]
[1746650316359,1.27200301,598.47,597.42,1.43077285]
[1746650316559,1.27200301,598.46,597.42,1.43077285]
[1746650316758,2.28684431,598.45,597.42,1.43077285]
[1746650316954,1.27200301,598.44,597.42,1.43077285]
[1746650317160,1.27200301,598.43,597.42,1.43077285]
[1746650317356,2.28684431,598.42,597.42,1.43077285]
[1746650317563,1.27200301,598.41,597.42,1.43077285]
[1746650317755,1.27200301,598.4,597.42,1.43077285]
[1746650317958,2.2888551,598.39,597.42,1.43077285]
[1746650318161,1.0148413,598.39,597.42,1.43077285]
[1746650318462,1.27382948,598.38,597.42,1.43077285]
[1746650318762,1.0148413,598.38,597.42,1.43077285]
[1746650319364,1.0148413,598.37,597.42,1.43077285]
[1746650319667,1.0148413,598.36,597.42,1.43077285]
[1746650319966,1.0148413,598.35,597.42,1.43077285]
[1746650320667,1.0148413,598.34,597.42,1.43077285]
[1746650320867,0.29098085,598.58,597.42,1.43077285]
[1746650321067,1.27510592,598.57,597.42,1.43077285]
[1746650321267,1.27510592,598.56,597.42,1.43077285]
[1746650321468,1.27510592,598.55,597.42,1.43077285]
[1746650321668,0.33393999,598.91,597.42,1.43077285]
[1746650321669,1.27510592,598.54,597.42,1.43077285]
[1746650321869,2.29106602,598.53,597.42,1.43077285]
[1746650322063,1.27510592,598.52,597.42,1.43077285]
[1746650322263,1.27510592,598.51,597.42,1.43077285]
[1746650322466,2.29106602,598.5,597.42,1.43077285]
[1746650322667,1.27510592,598.49,597.42,1.43077285]
[1746650322864,2.29106602,598.48,597.42,1.43077285]
[1746650323069,1.27510592,598.47,597.42,1.43077285]
[1746650323269,2.29106602,598.46,597.42,1.43077285]
[1746650323568,1.27510592,598.45,597.42,1.43077285]
[1746650323769,1.27510592,598.44,597.42,1.43077285]
[1746650324064,1.27510592,598.43,597.42,1.43077285]
[1746650324269,2.29106602,598.42,597.42,1.43077285]
[1746650324467,1.27510592,598.41,597.42,1.43077285]
[1746650324671,1.27510592,598.4,597.42,1.43077285]
[1746650324969,2.29106602,598.39,597.42,2.52277285]
[1746650325162,1.27510592,598.38,597.42,2.52277285]
[1746650325364,2.28833559,598.37,597.42,2.52277285]
[1746650325564,1.0159601,598.37,597.42,2.52277285]
[1746650325764,1.0159601,598.36,597.42,2.52277285]
[1746650326070,1.0159601,598.35,597.42,2.52277285]
[1746650326470,1.0159601,598.34,597.42,2.52277285]
[1746650327066,1.0159601,598.33,597.42,2.52277285]
[1746650327673,1.0159601,598.32,597.42,2.52277285]
[1746650328275,0.29099423,598.55,597.42,2.52277285]
[1746650328574,1.27254093,598.54,597.42,2.52277285]
[1746650328775,2.28749477,598.53,597.42,2.52277285]
[1746650329071,1.27254093,598.52,597.42,2.52277285]
[1746650329273,1.27229944,598.51,597.42,2.52277285]
[1746650329474,1.27229944,598.5,597.42,2.52277285]
[1746650329675,2.28725328,598.49,597.45,1.06448122]
[1746650329870,1.27229944,598.48,597.47,0.33474484]
[1746650330069,2.28725328,598.47,597.47,0.33474484]
[1746650330274,1.27229944,598.46,597.47,0.33474484]
[1746650330469,1.27229944,598.45,597.47,0.33474484]
[1746650330773,2.28725328,598.44,597.47,0.33474484]
[1746650331079,2.28725328,598.43,597.47,0.33474484]
[1746650331267,1.27229944,598.42,597.47,0.33474484]
[1746650331471,1.27229944,598.41,597.47,0.33474484]
[1746650331669,1.27229944,598.4,597.47,0.33474484]
[1746650331869,2.28725328,598.39,597.47,0.33474484]
[1746650332173,2.28725328,598.38,597.47,0.33474484]
[1746650332370,1.27229944,598.37,597.47,0.33474484]
[1746650332567,2.28725328,598.36,597.47,0.33474484]
[1746650332772,1.27229944,598.35,597.47,0.33474484]
[1746650332968,1.01495384,598.36,597.47,0.33474484]
[1746650333173,1.27329838,598.35,597.47,0.33474484]
[1746650333370,1.01495384,598.36,597.47,0.33474484]
[1746650333673,2.2882732,598.35,597.47,0.33474484]
[1746650333874,1.01495384,598.34,597.47,0.33474484]
[1746650334176,1.01495384,598.33,597.47,0.33474484]
[1746650334570,1.01495384,598.32,597.48,0.711]
[1746650334770,1.01495384,598.32,597.5,0.33472803]
[1746650335176,1.01495384,598.31,597.5,0.33472803]
[1746650335475,1.01495384,598.3,597.5,0.33472803]
[1746650335973,1.01495384,598.29,597.5,0.33472803]
[1746650336374,0.33393999,598.91,597.5,0.33472803]
[1746650336575,1.27300336,598.9,597.5,0.33472803]
[1746650336777,0.2909918,598.55,597.5,0.33472803]
[1746650336971,1.27300336,598.54,597.5,0.33472803]
[1746650337171,1.27300336,598.53,597.5,0.33472803]
[1746650337374,1.27300336,598.52,597.51,0.872]
[1746650337574,2.28925724,598.51,597.53,0.33471122]
[1746650337871,2.28925724,598.5,597.53,0.33471122]
[1746650338075,1.27320104,598.49,597.53,0.33471122]
[1746650338274,1.27320104,598.48,597.53,0.33471122]
[1746650338473,1.27320104,598.47,597.53,0.33471122]
[1746650338674,1.27320104,598.46,597.53,0.33471122]
[1746650338878,1.27320104,598.45,597.53,0.33471122]
[1746650339078,2.28925724,598.44,597.53,0.33471122]
[1746650339374,1.27320104,598.43,597.53,0.33471122]
[1746650339576,1.0160562,598.44,597.53,1.28971122]
[1746650340477,1.27180403,598.43,597.53,1.28971122]
[1746650340875,1.0160562,598.44,597.53,1.28971122]
[1746650341080,1.27171078,598.43,597.53,1.28971122]
[1746650341279,1.27171078,598.42,597.53,1.28971122]
[1746650341479,1.27171284,598.41,597.53,1.28971122]
[1746650341779,1.27172089,598.4,597.53,1.28971122]
[1746650341974,1.27172089,598.39,597.53,1.28971122]
[1746650342178,2.28777709,598.38,597.53,1.28971122]
[1746650342479,1.27172089,598.37,597.53,1.28971122]
[1746650342679,1.0160562,598.38,597.53,1.28971122]
[1746650342877,1.0160562,598.38,597.53,2.29571122]
[1746650343078,1.0160562,598.37,597.53,2.29571122]
[1746650343373,1.0160562,598.36,597.53,2.29571122]
[1746650344079,1.0160562,598.35,597.53,2.29571122]
[1746650344278,1.0160562,598.34,597.53,2.29571122]
[1746650344580,1.0160562,598.33,597.53,2.29571122]
[1746650345277,1.0160562,598.32,597.53,2.29571122]
[1746650345978,0.29098085,598.55,597.53,2.29571122]
[1746650346178,1.27325344,598.54,597.53,2.29571122]
[1746650346378,1.27325344,598.53,597.53,2.29571122]
[1746650346580,1.27325344,598.52,597.53,2.29571122]
[1746650346775,1.27325344,598.51,597.53,2.29571122]
[1746650346978,1.27325344,598.5,597.53,2.29571122]
[1746650347179,1.27325344,598.49,597.53,2.29571122]
[1746650347377,2.28918854,598.48,597.53,2.29571122]
[1746650347579,1.27325344,598.47,597.53,2.29571122]
[1746650347780,1.27325344,598.46,597.53,2.29571122]
[1746650347982,2.28918854,598.45,597.53,2.29571122]
[1746650348277,2.28918854,598.44,597.53,2.29571122]
[1746650348481,1.27325344,598.43,597.53,2.29571122]
[1746650348678,1.27325344,598.42,597.53,2.29571122]
[1746650348882,1.27325344,598.41,597.53,2.29571122]
[1746650349085,1.27325344,598.4,597.53,3.36019244]
[1746650349283,1.27325344,598.39,597.53,3.36019244]
[1746650349485,1.27325344,598.38,597.53,3.36019244]
[1746650349685,1.27325344,598.37,597.53,3.36019244]
[1746650349890,2.28918854,598.36,597.53,3.36019244]
[1746650350085,1.27325344,598.35,597.53,3.36019244]
[1746650350390,1.27387853,598.34,597.53,3.36019244]
[1746650350585,2.28981363,598.33,597.53,3.36019244]
[1746650350787,1.27387853,598.32,597.53,3.36019244]
[1746650350986,1.0159351,598.33,597.53,3.36019244]
[1746650351189,2.29062242,598.32,597.53,3.36019244]
[1746650351391,1.0159351,598.32,597.53,2.29571122]
[1746650351791,2.29033537,598.31,597.53,2.29571122]
[1746650351991,1.0159351,598.31,597.53,2.29571122]
[1746650352289,1.0159351,598.3,597.53,2.29571122]
[1746650352488,1.0159351,598.29,597.53,2.29571122]
[1746650352686,1.0159351,598.28,597.53,2.29571122]
[1746650353390,1.0159351,598.27,597.53,2.29571122]
[1746650353894,0.29098206,598.55,597.53,2.29571122]
[1746650354096,1.27469575,598.54,597.53,2.29571122]
[1746650354295,2.29160541,598.53,597.53,2.29571122]
[1746650354495,1.27469575,598.52,597.53,2.29571122]
[1746650354692,1.27469575,598.51,597.53,2.29571122]
[1746650354897,1.01690966,598.53,597.53,2.29571122]
[1746650354898,1.27469575,598.5,597.53,2.29571122]
[1746650355100,2.29160541,598.49,597.53,2.29571122]
[1746650355298,1.27508242,598.48,597.53,2.29571122]
[1746650355497,2.29199208,598.47,597.53,2.29571122]
[1746650355797,1.27508242,598.46,597.53,2.29571122]
[1746650355999,2.29199208,598.45,597.53,2.29571122]
[1746650356294,1.27508242,598.44,597.53,2.29571122]
[1746650356497,1.27508242,598.43,597.53,2.29571122]
[1746650356697,2.29199208,598.42,597.53,2.29571122]
[1746650356998,1.27508242,598.41,597.53,2.29571122]
[1746650357191,1.27508242,598.4,597.53,2.29571122]
[1746650357394,1.27508242,598.39,597.53,2.29571122]
[1746650357597,1.27508242,598.38,597.53,2.29571122]
[1746650357799,2.29199208,598.37,597.53,2.29571122]
[1746650358000,1.27508242,598.36,597.53,2.29571122]
[1746650358300,2.29199208,598.35,597.53,2.29571122]
[1746650358501,1.27508242,598.34,597.53,2.29571122]
[1746650358695,0.29097233,598.55,597.53,2.29571122]
[1746650358696,2.29199208,598.33,597.53,2.29571122]
[1746650358902,1.27508242,598.32,597.53,2.29571122]
[1746650359101,1.27508242,598.31,597.53,2.29571122]
[1746650359302,1.01690966,598.33,597.53,2.29571122]
[1746650359499,2.29215336,598.32,597.53,2.29571122]
[1746650359800,1.2752437,598.31,597.53,2.29571122]
[1746650360096,1.01690966,598.32,597.53,2.29571122]
[1746650360097,2.29215336,598.3,597.53,2.29571122]
[1746650360301,1.01690966,598.3,597.53,2.29571122]
[1746650361002,1.01720546,598.29,597.53,2.29571122]
[1746650361502,1.01720546,598.28,597.53,2.29571122]
[1746650362303,1.01720546,598.27,597.53,2.29571122]
[1746650362496,1.01720546,598.26,597.53,2.29571122]
[1746650363004,1.01720546,598.25,597.53,2.29571122]
[1746650363503,0.33393999,598.91,597.53,2.29571122]
[1746650363702,2.29361037,598.9,597.53,2.29571122]
[1746650363902,0.29099058,598.55,597.53,2.29571122]
[1746650364098,2.29361037,598.54,597.53,2.29571122]
[1746650364297,1.27592921,598.53,597.53,2.29571122]
[1746650364501,2.29361037,598.52,597.53,2.29571122]
[1746650364698,1.27616121,598.51,597.53,2.29571122]
[1746650364903,1.27616121,598.5,597.53,2.29571122]
[1746650365100,2.29384237,598.49,597.53,2.29571122]
[1746650365298,1.27616121,598.48,597.53,2.29571122]
[1746650365498,1.27616121,598.47,597.53,2.29571122]
[1746650365800,2.29384237,598.46,597.53,2.29571122]
[1746650366003,2.29384237,598.45,597.53,2.29571122]
[1746650366203,1.27616121,598.44,597.53,2.29571122]
[1746650366403,1.27616121,598.43,597.53,2.29571122]
[1746650366603,1.27594301,598.42,597.53,2.29571122]
[1746650366902,1.27594301,598.41,597.53,2.29571122]
[1746650367104,1.27594301,598.4,597.53,2.29571122]
[1746650367403,1.27594301,598.39,597.53,2.29571122]
[1746650367602,1.27594301,598.38,597.53,2.29571122]
[1746650367903,2.29362417,598.37,597.53,2.29571122]
[1746650368102,1.27594301,598.36,597.53,2.29571122]
[1746650368398,1.27594301,598.35,597.53,2.29571122]
[1746650368602,1.27594301,598.34,597.53,2.29571122]
[1746650368903,1.27594301,598.33,597.53,2.29571122]
[1746650369103,1.27594301,598.32,597.53,2.29571122]
[1746650369303,1.27594301,598.31,597.53,2.29571122]
[1746650369505,2.29362417,598.3,597.53,2.29571122]
[1746650369803,1.27594301,598.29,597.53,2.29571122]
[1746650370004,1.27634548,598.28,597.53,2.29571122]
[1746650370204,1.01768116,598.27,597.53,2.29571122]
[1746650370699,1.01768116,598.26,597.53,2.29571122]
[1746650371004,1.01768116,598.25,597.53,2.29571122]
[1746650371405,0.29098206,598.55,597.53,2.29571122]
[1746650371705,2.29441169,598.54,597.53,2.29571122]
[1746650371906,1.27635849,598.53,597.53,2.29571122]
[1746650372101,2.29441169,598.52,597.53,2.29571122]
[1746650372305,1.27708533,598.51,597.53,2.29571122]
[1746650372506,1.27708533,598.5,597.53,2.29571122]
[1746650372702,1.27708533,598.49,597.53,2.29571122]
[1746650372901,2.29513853,598.48,597.53,2.29571122]
[1746650373099,1.27708533,598.47,597.53,2.29571122]
[1746650373305,2.29513853,598.46,597.53,2.29571122]
[1746650373506,1.27708533,598.45,597.53,2.29571122]
[1746650373700,2.29513853,598.44,597.53,2.29571122]
[1746650373901,1.27708533,598.43,597.53,2.29571122]
[1746650374101,1.27708533,598.42,597.53,2.29571122]
[1746650374306,2.29513853,598.41,597.53,2.29571122]
[1746650374606,2.29513853,598.4,597.53,3.08571122]
[1746650374806,1.27708533,598.39,597.53,3.08571122]
[1746650375108,2.29513853,598.38,597.53,3.08571122]
[1746650375301,1.27708533,598.37,597.53,3.08571122]
[1746650375507,1.27708533,598.36,597.53,3.08571122]
[1746650375707,1.27708533,598.35,597.53,3.08571122]
[1746650376006,2.29513853,598.34,597.53,3.08571122]
[1746650376206,1.27708533,598.33,597.53,3.08571122]
[1746650376407,1.27708533,598.32,597.53,3.08571122]
[1746650376606,1.27708533,598.31,597.53,3.08571122]
[1746650376905,1.27708533,598.3,597.53,3.08571122]
[1746650377106,2.29513853,598.29,597.53,3.08571122]
[1746650377307,1.27708533,598.28,597.53,3.08571122]
[1746650377507,1.27708533,598.27,597.53,3.08571122]
[1746650377706,1.27708533,598.26,597.53,3.08571122]
[1746650377905,1.27708533,598.25,597.53,3.08571122]
[1746650378107,2.29513853,598.24,597.53,3.08571122]
[1746650378408,2.29513853,598.23,597.53,3.08571122]
[1746650378608,2.29513853,598.22,597.53,3.08571122]
[1746650378808,1.27708533,598.21,597.53,3.08571122]
[1746650379011,1.0180532,598.2,597.53,3.08571122]
[1746650379806,1.0180532,598.19,597.53,3.08571122]
[1746650380106,0.29098936,598.49,597.53,3.08571122]
[1746650380311,1.27506742,598.48,597.53,3.08571122]
[1746650380510,1.27506742,598.47,597.53,3.08571122]
[1746650380707,1.27506742,598.46,597.53,3.08571122]
[1746650380906,1.2750895,598.45,597.53,3.08571122]
[1746650381109,1.2750895,598.44,597.53,3.08571122]
[1746650381306,1.2750895,598.43,597.53,3.08571122]
[1746650381612,2.29146163,598.42,597.53,3.08571122]
[1746650381811,1.2750895,598.41,597.53,3.08571122]
[1746650382011,1.2750895,598.4,597.53,3.08571122]
[1746650382306,2.29146163,598.39,597.53,3.08571122]
[1746650382510,1.2750895,598.38,597.53,3.08571122]
[1746650382709,1.2750895,598.37,597.53,3.08571122]
[1746650382910,2.29146163,598.36,597.53,3.08571122]
[1746650383110,1.2750895,598.35,597.53,3.08571122]
[1746650383308,1.27526974,598.34,597.53,3.08571122]
[1746650383512,1.27526974,598.33,597.53,3.08571122]
[1746650383713,2.29164187,598.32,597.53,3.08571122]
[1746650383912,1.27526974,598.31,597.53,3.08571122]
[1746650384113,2.29164187,598.3,597.53,3.08571122]
[1746650384313,1.27526974,598.29,597.53,3.08571122]
[1746650384514,2.29164187,598.28,597.53,3.08571122]
[1746650384714,1.27526974,598.27,597.53,3.08571122]
[1746650384917,1.27573772,598.26,597.53,3.08571122]
[1746650385119,2.29210985,598.25,597.53,3.08571122]
[1746650385317,1.27573772,598.24,597.53,3.08571122]
[1746650385515,2.29210985,598.23,597.53,3.08571122]
[1746650385714,1.01637213,598.23,597.53,3.08571122]
[1746650386318,1.01637213,598.22,597.53,3.08571122]
[1746650386919,0.29102343,598.39,597.53,3.08571122]
[1746650386920,1.01637213,598.21,597.53,3.08571122]
[1746650387319,1.01637213,598.2,597.53,3.08571122]
[1746650387819,0.29102343,598.39,597.53,3.08571122]
[1746650388016,1.27555656,598.38,597.53,3.08571122]
[1746650388218,2.29203746,598.37,597.53,3.08571122]
[1746650388417,1.27555656,598.36,597.53,3.08571122]
[1746650388614,1.27555656,598.35,597.53,3.08571122]
[1746650388813,1.27541982,598.34,597.53,3.08571122]
[1746650389017,2.29190072,598.33,597.53,3.08571122]
[1746650389217,0.29102343,598.39,597.53,3.08571122]
[1746650389218,2.29190072,598.32,597.53,3.08571122]
[1746650389416,1.27541982,598.31,597.53,3.08571122]
[1746650389617,1.27541982,598.3,597.53,3.08571122]
[1746650389818,1.27541982,598.29,597.53,3.08571122]
[1746650390113,2.29190072,598.28,597.53,3.08571122]
[1746650390318,1.27541982,598.27,597.53,3.08571122]
[1746650390516,1.27517969,598.26,597.53,3.08571122]
[1746650390715,1.27517969,598.25,597.53,3.08571122]
[1746650390919,1.27517969,598.24,597.53,3.08571122]
[1746650391118,1.27517969,598.23,597.53,3.08571122]
[1746650391418,1.27517969,598.22,597.53,3.08571122]
[1746650391617,2.29166059,598.21,597.53,3.08571122]
[1746650391819,1.27517969,598.2,597.53,3.08571122]
[1746650392017,1.0164809,598.21,597.53,3.08571122]
[1746650392222,1.27502106,598.2,597.53,3.08571122]
[1746650392416,1.0164809,598.21,597.53,3.08571122]
[1746650392617,2.29141455,598.2,597.53,3.08571122]
[1746650392817,1.0164809,598.2,597.53,3.08571122]
[1746650393021,1.0164809,598.19,597.53,3.08571122]
[1746650393218,1.0164809,598.18,597.53,3.08571122]
[1746650393722,1.0164809,598.17,597.53,3.08571122]
[1746650394218,1.0164809,598.16,597.53,3.08571122]
[1746650394918,0.29103804,598.39,597.53,3.08571122]
[1746650395218,1.2749548,598.38,597.53,3.08571122]
[1746650395423,1.2749548,598.37,597.53,3.08571122]
[1746650395723,2.29086489,598.36,597.53,3.08571122]
[1746650395917,1.2749548,598.35,597.53,3.08571122]
[1746650396122,1.27495162,598.34,597.53,3.08571122]
[1746650396322,1.27495162,598.33,597.53,3.08571122]
[1746650396619,1.27495162,598.32,597.53,3.08571122]
[1746650396823,1.27495162,598.31,597.53,3.08571122]
[1746650397024,1.27495162,598.3,597.53,3.08571122]
[1746650397320,2.29086171,598.29,597.53,3.08571122]
[1746650397519,1.27495162,598.28,597.53,3.85271122]
[1746650397723,1.27495162,598.27,597.53,3.85271122]
[1746650398023,2.2912532,598.26,597.53,3.85271122]
[1746650398227,1.27534311,598.25,597.53,3.85271122]
[1746650398428,1.27534311,598.24,597.53,3.85271122]
[1746650398625,1.27534311,598.23,597.53,3.85271122]
[1746650398822,2.2912532,598.22,597.53,3.85271122]
[1746650399027,1.27534311,598.21,597.53,3.85271122]
[1746650399229,1.01591009,598.22,597.53,3.85271122]
[1746650399425,1.27772214,598.21,597.53,3.85271122]
[1746650399624,1.01591009,598.22,597.53,3.85271122]
[1746650400127,1.01591009,598.21,597.53,3.85271122]
[1746650400530,1.01591009,598.2,597.53,3.85271122]
[1746650401128,1.01591009,598.19,597.53,3.85271122]
[1746650401326,1.01591009,598.18,597.53,3.85271122]
[1746650401524,1.01591009,598.17,597.53,3.85271122]
[1746650404434,0.29103925,598.39,597.53,3.85271122]
[1746650404633,1.27868428,598.38,597.53,3.85271122]
[1746650404829,1.27868428,598.37,597.53,3.85271122]
[1746650405033,1.27868428,598.36,597.53,3.85271122]
[1746650405238,2.29625845,598.35,597.53,3.85271122]
[1746650405434,1.27868428,598.34,597.53,3.85271122]
[1746650405734,1.27868428,598.33,597.53,3.85271122]
[1746650405927,1.27868428,598.32,597.53,3.85271122]
[1746650406127,2.29625845,598.31,597.53,3.85271122]
[1746650406427,1.27868428,598.3,597.53,3.85271122]
[1746650406632,1.27868428,598.29,597.53,3.85271122]
[1746650406833,1.27868428,598.28,597.53,3.85271122]
[1746650407034,1.27868428,598.27,597.53,3.85271122]
[1746650407234,1.27868428,598.26,597.53,3.85271122]
[1746650407434,2.29625845,598.25,597.53,3.85271122]
[1746650407735,2.29625845,598.24,597.53,3.85271122]
[1746650408035,1.27868428,598.23,597.53,3.85271122]
[1746650408235,2.29625845,598.22,597.53,3.85271122]
[1746650408436,1.27868428,598.21,597.53,3.85271122]
[1746650408633,1.27868428,598.2,597.53,3.85271122]
[1746650408834,1.28017149,598.19,597.53,3.85271122]
[1746650409036,2.29773195,598.18,597.53,3.85271122]
[1746650409231,1.01757417,598.18,597.53,3.85271122]
[1746650409739,1.01757417,598.17,597.53,3.85271122]
[1746650410438,1.01757417,598.16,597.53,3.85271122]
[1746650410938,1.01757417,598.15,597.53,3.85271122]
[1746650411133,1.27981573,598.14,597.53,3.85271122]
[1746650411333,1.01757417,598.15,597.53,3.85271122]
[1746650411534,1.27969725,598.14,597.53,3.85271122]
[1746650411732,1.01757417,598.13,597.53,3.85271122]
[1746650412238,1.01757417,598.12,597.53,3.85271122]
[1746650412938,1.01757417,598.11,597.53,3.85271122]
[1746650413632,1.01757417,598.1,597.53,3.85271122]
[1746650414134,0.29104412,598.35,597.53,3.85271122]
[1746650414334,1.27949579,598.34,597.53,3.85271122]
[1746650414539,2.29730177,598.33,597.53,3.85271122]
[1746650414738,1.27949579,598.32,597.53,3.85271122]
[1746650414934,1.27949579,598.31,597.53,3.85271122]
[1746650415138,1.27949579,598.3,597.53,3.85271122]
[1746650415338,1.27949579,598.29,597.53,3.85271122]
[1746650415533,1.27949579,598.28,597.53,3.85271122]
[1746650415738,1.27949579,598.27,597.53,3.85271122]
[1746650415940,2.29730177,598.26,597.53,3.85271122]
[1746650416241,1.28001832,598.25,597.53,3.85271122]
[1746650416439,1.28001832,598.24,597.53,3.85271122]
[1746650416640,1.28001832,598.23,597.53,3.85271122]
[1746650416836,1.28001832,598.22,597.53,3.85271122]
[1746650417042,1.28001832,598.21,597.53,3.85271122]
[1746650417241,2.2978243,598.2,597.53,3.85271122]
[1746650417538,1.28001832,598.19,597.53,3.85271122]
[1746650417742,0.33393999,598.91,597.53,3.85271122]
[1746650417743,2.2978243,598.18,597.53,3.85271122]
[1746650417939,1.28001832,598.17,597.53,3.85271122]
[1746650418141,1.01780598,598.18,597.53,3.85271122]
[1746650418442,2.2981766,598.17,597.53,3.85271122]
[1746650418644,1.28037062,598.16,597.53,3.85271122]
[1746650418836,1.01780598,598.15,597.53,3.85271122]
[1746650419342,1.01780598,598.14,597.53,3.85271122]
[1746650419642,0.29103073,598.41,597.53,3.85271122]
[1746650419643,1.01780598,598.13,597.53,3.85271122]
[1746650420341,1.01780598,598.12,597.53,3.85271122]
[1746650421043,1.01780598,598.11,597.53,3.85271122]
[1746650421442,1.01780598,598.1,597.53,3.85271122]
[1746650422043,0.29103925,598.41,597.53,3.85271122]
[1746650422243,1.28078445,598.4,597.53,3.85271122]
[1746650422443,1.28078445,598.39,597.53,3.85271122]
[1746650422645,1.28078445,598.38,597.53,3.85271122]
[1746650422844,1.28078445,598.37,597.53,3.85271122]
[1746650423045,2.29966792,598.36,597.53,3.85271122]
[1746650423244,1.28078445,598.35,597.53,3.85271122]
[1746650423446,1.28078445,598.34,597.53,3.85271122]
[1746650423646,1.01888347,598.36,597.53,3.85271122]
[1746650423647,1.2812668,598.33,597.53,3.85271122]
[1746650423849,2.30015027,598.32,597.53,3.85271122]
[1746650424046,1.2812668,598.31,597.53,3.85271122]
[1746650424245,1.2812668,598.3,597.53,3.85271122]
[1746650424447,1.2812668,598.29,597.53,3.85271122]
[1746650424648,1.2812668,598.28,597.53,3.85271122]
[1746650424849,1.2812668,598.27,597.53,3.85271122]
[1746650425050,2.30015027,598.26,597.53,3.85271122]
[1746650425248,1.2812668,598.25,597.53,3.85271122]
[1746650425448,1.2812668,598.24,597.53,3.85271122]
[1746650425642,1.2812668,598.23,597.53,3.85271122]
[1746650425846,1.01888347,598.26,597.53,3.85271122]
[1746650425847,2.30015027,598.22,597.53,3.85271122]
[1746650426046,1.2812668,598.21,597.53,3.85271122]
[1746650426243,2.30015027,598.2,597.53,3.85271122]
[1746650426554,1.2812668,598.19,597.53,3.85271122]
[1746650426745,2.30015027,598.18,597.53,3.85271122]
[1746650426948,1.2812668,598.17,597.53,3.85271122]
[1746650427149,1.2812668,598.16,597.53,3.85271122]
[1746650427349,1.28088932,598.15,597.53,3.85271122]
[1746650427543,1.28088932,598.14,597.53,3.85271122]
[1746650427747,1.28088932,598.13,597.53,3.85271122]
[1746650428044,1.28088932,598.12,597.53,3.85271122]
[1746650428243,1.28088932,598.11,597.53,3.85271122]
[1746650428443,1.28088932,598.1,597.53,3.85271122]
[1746650428647,1.28088932,598.09,597.53,3.85271122]
[1746650428848,1.01888347,598.12,597.53,3.85271122]
[1746650429050,2.30000648,598.11,597.53,3.85271122]
[1746650429346,1.28112301,598.1,597.53,3.85271122]
[1746650429547,2.30000648,598.09,597.53,3.85271122]
[1746650429751,1.01888347,598.09,597.53,3.85271122]
[1746650430145,1.01888347,598.08,597.53,3.85271122]
[1746650430746,1.01888347,598.07,597.53,3.85271122]